fUSD/lending_fUSD_20251012
["ID","MTS","AMOUNT","RATE_DAILY","PERIOD"]
[391065926,1760299833207,-500.0,0.00024739,2]
[391065927,1760299833217,-151.0,0.00024739,2]
[391065928,1760299833226,-1000.0,0.00024739,2]
[391065929,1760299833235,-500.0,0.00024739,2]
[391065930,1760299833245,-151.0,0.00024739,2]
[391065931,1760299833255,-1000.0,0.00024739,2]
[391065932,1760299833265,-500.0,0.00024739,2]
[391065934,1760299833274,-151.0,0.00024739,2]
[391065936,1760299833284,-1000.0,0.00024739,2]
[391065938,1760299833294,-1000.0,0.00024739,2]
[391065940,1760299833303,-322.6107,0.00024739,2]
[391065942,1760299833313,-500.0,0.00024739,2]
[391065944,1760299833322,-151.0,0.00024739,2]
[391065946,1760299833332,-1000.0,0.00024739,2]
[391065948,1760299833341,-1000.0,0.00024739,2]
[391065950,1760299833351,-151.0,0.00024739,2]
[391065952,1760299833360,-500.0,0.00024739,2]
[391065954,1760299833369,-1000.0,0.00024739,2]
[391065956,1760299833379,-151.0,0.00024739,2]
[391065958,1760299833388,-1000.0,0.00024739,2]
[391065960,1760299833398,-1000.0,0.00024739,2]
[391065962,1760299833407,-500.0,0.00024739,2]
[391065964,1760299833416,-151.0,0.00024739,2]
[391065966,1760299833426,-226.31638113,0.00024739,2]
[391065968,1760299833435,-1000.0,0.00024739,2]
[391065970,1760299833444,-1000.0,0.00024739,2]
[391065972,1760299833452,-233.06346285,0.00024739,2]
[391065974,1760299833461,-151.0,0.00024739,2]
[391065976,1760299833471,-1000.0,0.00024739,2]
[391065978,1760299833480,-1000.0,0.00024739,2]
[391065979,1760299833490,-151.0,0.00024739,2]
[391065981,1760299833499,-1000.0,0.00024739,2]
[391065983,1760299833509,-1000.0,0.00024739,2]
[391065985,1760299833518,-151.0,0.00024739,2]
[391065987,1760299833527,-1000.0,0.00024739,2]
[391065989,1760299833537,-1000.0,0.00024739,2]
[391065991,1760299833546,-151.0,0.00024739,2]
[391065993,1760299833557,-1000.0,0.00024739,2]
[391065995,1760299833567,-151.0,0.00024739,2]
[391065997,1760299833576,-288.12962481,0.00024739,2]
[391066000,1760299833586,-1000.0,0.00024739,2]
[391066002,1760299833595,-1034.14620718,0.00024739,2]
[391066003,1760299833605,-500.0,0.00024739,2]
[391066006,1760299833615,-500.0,0.00024739,2]
[391066008,1760299833626,-500.0,0.00024739,2]
[391066009,1760299833636,-500.0,0.00024739,2]
[391066011,1760299833645,-500.0,0.00024739,2]
[391066014,1760299833655,-500.0,0.00024739,2]
[391066015,1760299833664,-500.0,0.00024739,2]
[391066018,1760299833674,-378.01553928,0.00024739,2]
[391066020,1760299833683,-1000.0,0.000248,9]
[391066022,1760299833692,-1000.0,0.000248,9]
[391066024,1760299833701,-1000.0,0.000248,9]
[391066026,1760299833710,-1000.0,0.000248,9]
[391066028,1760299833723,-1000.0,0.000248,9]
[391066030,1760299833732,-1000.0,0.000248,9]
[391066032,1760299833742,-1000.0,0.000248,9]
[391066034,1760299833751,-1000.0,0.000248,9]
[391066036,1760299833760,-500.0,0.00024833,2]
[391066038,1760299833769,-500.0,0.00024998,2]
[391066040,1760299833778,-150.0,0.00025,2]
[391066042,1760299833788,-150.0,0.00025,2]
[391066043,1760299833797,-150.0,0.00025,2]
[391066046,1760299833807,-150.0,0.00025,2]
[391066048,1760299833816,-150.0,0.00025,2]
[391066050,1760299833826,-150.0,0.00025,2]
[391066052,1760299833835,-150.0,0.00025,2]
[391066053,1760299833845,-150.0,0.00025,2]
[391066055,1760299833854,-150.0,0.00025,2]
[391066057,1760299833863,-251.877,0.00025,2]
[391066059,1760299833873,-1022.38,0.00025,2]
[391066062,1760299833887,-500.0,0.00025125,2]
[391066063,1760299833896,-274.98870647,0.00025125,2]
[391066066,1760299833906,-377.61385288,0.00025125,2]
[391066067,1760299833915,-500.0,0.00025125,2]
[391066070,1760299833926,-200.0,0.00025287,2]
[391066072,1760299833937,-6582.66155787,0.00025315,3]
[391066074,1760299833947,-485.0,0.00025373,7]
[391066076,1760299833957,-1022.38,0.000255,2]
[391066078,1760299833968,-204.28528275,0.00025835,2]
[391066080,1760299833977,-1053.99171725,0.0002596,2]
[391066082,1760299833986,-317.9444,0.00025961,2]
[391066084,1760299833995,-233.2482,0.00025961,2]
[391066086,1760299834004,-7679.77181752,0.00025972,4]
[391066088,1760299834013,-1293.0,0.00026,2]
[391066090,1760299834023,-1022.38,0.00026,30]
[391066092,1760299834031,-587.0,0.00026008,2]
[391066093,1760299834040,-833.35774727,0.00026051,2]
[391066096,1760299834049,-153.41,0.00026051,2]
[391066097,1760299834061,-33385.6654,0.00026052,2]
[391066099,1760299834070,-1000.0,0.0002606,2]
[391066102,1760299834080,-42293.0378,0.00026061,2]
[391066104,1760299834090,-500.45909283,0.00026073,2]
[391066106,1760299834099,-500.0,0.00026073,2]
[391066108,1760299834108,-500.0,0.00026073,2]
[391066110,1760299834116,-500.0,0.00026073,2]
[391066112,1760299834126,-500.0,0.00026073,2]
[391066114,1760299834135,-1053.99171725,0.00026318,2]
[391066116,1760299834144,-1022.38,0.000265,30]
[391066118,1760299834154,-1000.0,0.00026588,30]
[391066120,1760299834163,-1000.0,0.00026593,2]
[391066121,1760299834172,-153.41,0.0002662,2]
[391066124,1760299834181,-1476.21,0.0002662,2]
[391066125,1760299834191,-8776.88207717,0.0002663,5]
[391066127,1760299834200,-1053.99171725,0.00026676,2]
[391066130,1760299834210,-985.27054269,0.0002671,7]
[391066131,1760299834220,-442.0,0.000268,2]
[391066133,1760299834229,-2545.0,0.00026836,2]
[391066136,1760299834239,-150.0,0.00027,2]
[391066138,1760299834248,-1022.38,0.00027,30]
[391066140,1760299834258,-646.0,0.00027,2]
[391066142,1760299834267,-165.0,0.00027,7]
[391066144,1760299834276,-1053.99171725,0.00027035,2]
[391066145,1760299834285,-481.0,0.00027064,7]
[391066147,1760299834294,-9873.99233681,0.00027287,7]
[391066149,1760299834303,-475.28169836,0.00027287,7]
[391066151,1760299834312,-523.32,0.00027377,2]
[391066153,1760299834321,-1053.99171725,0.00027393,2]
[391066155,1760299834330,-500.0,0.00027397,2]
[391066157,1760299834339,-500.0,0.00027397,2]
[391066160,1760299834348,-600.0,0.00027397,2]
[391066161,1760299834358,-300.0,0.00027397,2]
[391066164,1760299834367,-911.76997509,0.00027397,2]
[391066166,1760299834376,-921.18,0.00027397,2]
[391066167,1760299834386,-1581.59186855,0.000275,2]
[391066170,1760299834399,-418.40813145,0.000275,2]
[391066172,1760299834408,-1022.38,0.000275,30]
[391066174,1760299834417,-316.0,0.00027533,30]
[391066176,1760299834426,-543.21186855,0.00027751,2]
[391066291,1760299837869,-316.2508,0.00023479,15]
[391066292,1760299837883,-500.0,0.00026051,2]
[391066293,1760299837892,-135.12550135,0.00026051,2]
[391066294,1760299837903,-364.87449865,0.00026051,2]
[391066295,1760299837912,-222.60626943,0.00026051,2]
[391066296,1760299837924,-277.39373057,0.00026051,2]
[391066297,1760299837934,-123.00626943,0.00026051,2]
[391066468,1760299839923,-295.27799994,0.00026051,2]
[391066474,1760299839972,-81.71573063,0.00026051,2]
[391066476,1760299839982,-190.22182137,0.00026051,2]
[391066480,1760299840008,-309.77817863,0.00026051,2]
[391066482,1760299840017,-500.0,0.00026051,2]
[391066484,1760299840026,-216.20264884,0.00026051,2]
[391066486,1760299840035,-500.0,0.00027397,2]
[391066488,1760299840044,-480.01917253,0.00027751,2]
[391066508,1760299840228,-30.76067617,0.00027751,2]
[391066510,1760299840237,-541.83932373,0.00027799,2]
[391066727,1760299843456,-17.90582666,0.00027799,2]
[391066729,1760299843465,-10971.10259646,0.00027945,8]
[391066731,1760299843474,-600.0,0.00027945,2]
[391066732,1760299843484,-567.54444227,0.00027971,7]
[391066733,1760299843493,-1022.38,0.00028,30]
[391066734,1760299843502,-574.0,0.00028,10]
[391066735,1760299843511,-152.951343,0.00028027,2]
[391066736,1760299843520,-153.41,0.00028099,2]
[391066737,1760299843530,-1053.99171725,0.00028109,2]
[391066738,1760299843539,-1000.0,0.00028254,2]
[391066739,1760299843548,-823.0,0.00028262,2]
[391066740,1760299843557,-1053.99171725,0.00028468,2]
[391066741,1760299843566,-801.55123082,0.00028477,2]
[391066742,1760299843576,-600.0,0.00028493,2]
[391066743,1760299843585,-1022.38,0.000285,30]
[391066744,1760299843594,-1122.59132912,0.00028588,2]
[391066745,1760299843603,-12068.21285611,0.00028603,10]
[391066746,1760299843612,-475.28169836,0.00028603,10]
[391066747,1760299843622,-801.55123083,0.00028657,2]
[391066748,1760299843631,-5019.1725291,0.000287,2]
[391066749,1760299843640,-481.0,0.00028756,14]
[391066750,1760299843651,-168.59657154,0.00028815,30]
[391066751,1760299843660,-363.06721329,0.00028815,30]
[391066752,1760299843670,-1053.99171725,0.00028826,2]
[391066753,1760299843680,-500.0,0.00028848,2]
[391066754,1760299843691,-150.0,0.00028877,2]
[391066755,1760299843702,-150.0,0.00028877,2]
[391066756,1760299843712,-150.0,0.00028877,2]
[391066757,1760299843721,-200.68270803,0.00028877,2]
[391066758,1760299843731,-500.0,0.00028877,2]
[391066759,1760299843740,-150.0,0.00028877,2]
[391066760,1760299843750,-150.0,0.00028877,2]
[391066761,1760299843759,-150.0,0.00028877,2]
[391066762,1760299843768,-150.0,0.00028877,2]
[391066763,1760299843777,-300.0,0.00028877,2]
[391066764,1760299843786,-479.8558,0.00028877,2]
[391066765,1760299843795,-500.0,0.00028877,2]
[391066766,1760299843805,-158.4614209,0.00028877,2]
[391066767,1760299843815,-283.02517525,0.00028877,2]
[391066768,1760299843824,-1524.46655268,0.000289,2]
[391066769,1760299843833,-346.83833467,0.00028911,3]
[391066770,1760299843844,-500.0,0.00028913,120]
[391066771,1760299843854,-508.02336949,0.00028913,2]
[391066772,1760299843863,-220.59,0.00028914,7]
[391066773,1760299843872,-164.25455922,0.00028931,2]
[391066774,1760299843885,-150.0,0.00028932,2]
[391066775,1760299843895,-150.0,0.00028932,2]
[391066776,1760299843904,-150.0,0.00028932,2]
[391066777,1760299843914,-500.0,0.00028932,2]
[391066778,1760299843923,-211.60455807,0.00028932,2]
[391066779,1760299843933,-150.0,0.00028932,2]
[391066780,1760299843942,-150.0,0.00028932,2]
[391066781,1760299843953,-150.0,0.00028932,2]
[391066782,1760299843963,-300.0,0.00028932,2]
[391066783,1760299843972,-500.0,0.00028932,2]
[391066784,1760299843982,-5779.52350237,0.00028951,2]
[391066785,1760299843993,-423.3805624,0.00028951,2]
[391066786,1760299844003,-161.8981884,0.00028985,2]
[391066787,1760299844012,-5000.0,0.00028985,2]
[391066788,1760299844021,-280.11606994,0.00028987,2]
[391066789,1760299844030,-150.0,0.00028987,2]
[391066790,1760299844039,-150.0,0.00028987,2]
[391066791,1760299844048,-189.32850102,0.00028987,2]
[391066792,1760299844058,-150.0,0.00028987,2]
[391066793,1760299844067,-150.0,0.00028987,2]
[391066794,1760299844076,-150.0,0.00028987,2]
[391066795,1760299844086,-300.0,0.00028987,2]
[391066796,1760299844096,-500.0,0.00028987,2]
[391066797,1760299844106,-152.16983239,0.00028995,2]
[391066800,1760299844115,-150.0,0.00028996,2]
[391066802,1760299844124,-150.0,0.00028996,2]
[391066804,1760299844133,-579.0,0.00028997,14]
[391066806,1760299844143,-481.0,0.00028997,14]
[391066808,1760299844152,-1000.0,0.00028999,2]
[391066810,1760299844161,-1022.38,0.00029,30]
[391066812,1760299844170,-648.0,0.00029,2]
[391066814,1760299844179,-153.41,0.00029015,2]
[391066816,1760299844188,-313.65515206,0.00029016,2]
[391066818,1760299844197,-222.94994008,0.00029016,2]
[391066820,1760299844207,-540.0,0.00029026,2]
[391066822,1760299844215,-540.0,0.00029026,2]
[391066824,1760299844224,-540.0,0.00029026,2]
[391066826,1760299844233,-540.0,0.00029026,2]
[391066828,1760299844242,-540.0,0.00029026,2]
[391066830,1760299844251,-540.0,0.00029026,2]
[391066832,1760299844260,-540.0,0.00029026,2]
[391066834,1760299844270,-540.0,0.00029026,2]
[391066836,1760299844279,-540.0,0.00029026,2]
[391066838,1760299844287,-540.0,0.00029026,2]
[391066840,1760299844296,-406.0,0.00029026,2]
[391066842,1760299844305,-406.0,0.00029026,2]
[391066844,1760299844314,-406.0,0.00029026,2]
[391066846,1760299844323,-406.0,0.00029026,2]
[391066848,1760299844333,-406.0,0.00029026,2]
[391066850,1760299844342,-406.0,0.00029026,2]
[391066851,1760299844352,-406.0,0.00029026,2]
[391066852,1760299844361,-406.0,0.00029026,2]
[391066853,1760299844370,-406.0,0.00029026,2]
[391066854,1760299844379,-406.0,0.00029026,2]
[391066855,1760299844388,-627.0,0.00029027,2]
[391066856,1760299844397,-627.0,0.00029027,2]
[391066857,1760299844406,-627.0,0.00029027,2]
[391066858,1760299844414,-627.0,0.00029027,2]
[391066859,1760299844423,-627.0,0.00029027,2]
[391066860,1760299844432,-627.0,0.00029027,2]
[391066861,1760299844441,-627.0,0.00029027,2]
[391066862,1760299844450,-627.0,0.00029027,2]
[391066863,1760299844459,-627.0,0.00029027,2]
[391066864,1760299844469,-627.0,0.00029027,2]
[391066865,1760299844478,-466.0,0.00029027,2]
[391066866,1760299844487,-466.0,0.00029027,2]
[391066867,1760299844496,-466.0,0.00029027,2]
[391066868,1760299844505,-466.0,0.00029027,2]
[391066869,1760299844514,-466.0,0.00029027,2]
[391066870,1760299844523,-466.0,0.00029027,2]
[391066871,1760299844532,-466.0,0.00029027,2]
[391066872,1760299844541,-466.0,0.00029027,2]
[391066873,1760299844550,-466.0,0.00029027,2]
[391066874,1760299844559,-466.0,0.00029027,2]
[391066875,1760299844568,-597.0,0.00029029,2]
[391066876,1760299844576,-597.0,0.00029029,2]
[391066877,1760299844585,-597.0,0.00029029,2]
[391066878,1760299844593,-597.0,0.00029029,2]
[391066879,1760299844602,-597.0,0.00029029,2]
[391066880,1760299844611,-597.0,0.00029029,2]
[391066881,1760299844620,-597.0,0.00029029,2]
[391066882,1760299844629,-597.0,0.00029029,2]
[391066883,1760299844639,-597.0,0.00029029,2]
[391066884,1760299844648,-597.0,0.00029029,2]
[391066885,1760299844657,-469.0,0.00029029,2]
[391066886,1760299844667,-469.0,0.00029029,2]
[391066887,1760299844676,-469.0,0.00029029,2]
[391066888,1760299844685,-469.0,0.00029029,2]
[391066889,1760299844694,-469.0,0.00029029,2]
[391066890,1760299844703,-469.0,0.00029029,2]
[391066891,1760299844712,-469.0,0.00029029,2]
[391066892,1760299844721,-469.0,0.00029029,2]
[391066893,1760299844731,-469.0,0.00029029,2]
[391066894,1760299844740,-469.0,0.00029029,2]
[391066895,1760299844749,-457.0,0.0002903,2]
[391066896,1760299844758,-457.0,0.0002903,2]
[391066897,1760299844767,-457.0,0.0002903,2]
[391066898,1760299844776,-457.0,0.0002903,2]
[391066899,1760299844785,-457.0,0.0002903,2]
[391066900,1760299844795,-457.0,0.0002903,2]
[391066901,1760299844804,-457.0,0.0002903,2]
[391066902,1760299845040,-457.0,0.0002903,2]
[391066903,1760299845050,-457.0,0.0002903,2]
[391066904,1760299845059,-457.0,0.0002903,2]
[391066905,1760299845068,-383.0,0.00029031,2]
[391066906,1760299845078,-383.0,0.00029031,2]
[391066907,1760299845087,-383.0,0.00029031,2]
[391066908,1760299845096,-383.0,0.00029031,2]
[391066909,1760299845104,-383.0,0.00029031,2]
[391066910,1760299845114,-383.0,0.00029031,2]
[391066911,1760299845123,-383.0,0.00029031,2]
[391066912,1760299845132,-383.0,0.00029031,2]
[391066913,1760299845140,-383.0,0.00029031,2]
[391066914,1760299845149,-383.0,0.00029031,2]
[391066915,1760299845159,-153.41,0.00029035,2]
[391066916,1760299845168,-1444.0,0.00029041,120]
[391066917,1760299845177,-600.0,0.00029041,2]
[391066918,1760299845187,-150.0,0.00029041,2]
[391066919,1760299845196,-150.0,0.00029041,2]
[391066920,1760299845205,-150.0,0.00029041,2]
[391066921,1760299845214,-150.0,0.00029041,2]
[391066922,1760299845223,-150.0,0.00029041,2]
[391066923,1760299845232,-300.0,0.00029041,2]
[391066924,1760299845242,-500.0,0.00029041,2]
[391066925,1760299845251,-222.94994008,0.00029044,2]
[391066926,1760299845260,-38114.2575688,0.00029046,3]
[391066927,1760299845269,-150.0,0.00029051,2]
[391066928,1760299845278,-150.0,0.00029051,2]
[391066929,1760299845287,-313.65515203,0.00029058,2]
[391066930,1760299845296,-475.28169836,0.0002906,3]
[391066931,1760299845305,-222.94994008,0.00029072,2]
[391066932,1760299845314,-38114.2575688,0.00029075,3]
[391066933,1760299845323,-1476.21,0.00029075,2]
[391066934,1760299845332,-76228.5151376,0.00029086,3]
[391066935,1760299845342,-1943.13327125,0.00029086,3]
[391066936,1760299845351,-500.0,0.00029095,120]
[391066937,1760299845360,-190571.287844,0.00029095,3]
[391066938,1760299845369,-36919.5321538,0.00029095,3]
[391066939,1760299845378,-150.0,0.00029096,2]
[391066940,1760299845387,-150.0,0.00029096,2]
[391066941,1760299845396,-150.0,0.00029096,2]
[391066942,1760299845406,-150.0,0.00029096,2]
[391066943,1760299845415,-150.0,0.00029096,2]
[391066944,1760299845423,-300.0,0.00029096,2]
[391066945,1760299845432,-500.0,0.00029096,2]
[391066946,1760299845442,-313.65515203,0.000291,2]
[391066947,1760299845450,-222.94994008,0.000291,2]
[391066948,1760299845459,-500.0,0.00029105,120]
[391066949,1760299845468,-76505.95650691,0.00029105,2]
[391066950,1760299845478,-151.62273628,0.00029106,2]
[391066951,1760299845487,-150.0,0.00029106,2]
[391066952,1760299845496,-152457.030275,0.00029106,3]
[391066953,1760299845505,-23317.599255,0.00029106,3]
[391066954,1760299845517,-152.0,0.00029113,4]
[391066955,1760299845527,-323.47664088,0.00029114,2]
[391066956,1760299845536,-500.0,0.00029115,120]
[391066957,1760299845546,-58668.70949969,0.00029115,8]
[391066958,1760299845555,-4054.30444311,0.00029116,4]
[391066959,1760299845565,-4054.30444311,0.00029116,4]
[391066960,1760299845574,-4054.30444311,0.00029116,4]
[391066961,1760299845583,-4054.30444311,0.00029116,4]
[391066962,1760299845592,-4054.30444311,0.00029116,4]
[391066963,1760299845602,-4054.30444311,0.00029116,4]
[391066964,1760299845611,-4054.30444311,0.00029116,4]
[391066965,1760299845620,-4054.30444311,0.00029116,4]
[391066966,1760299845629,-4054.30444311,0.00029116,4]
[391066967,1760299845638,-4054.30444311,0.00029116,4]
[391066968,1760299845647,-4054.30444311,0.00029116,4]
[391066969,1760299845657,-4054.30444311,0.00029116,4]
[391066970,1760299845666,-4054.30444311,0.00029116,4]
[391066971,1760299845675,-4054.30444311,0.00029116,4]
[391066972,1760299845684,-4054.30444311,0.00029116,4]
[391066973,1760299845693,-4054.30444311,0.00029116,4]
[391066974,1760299845703,-4054.30444311,0.00029116,4]
[391066975,1760299845712,-4054.30444311,0.00029116,4]
[391066976,1760299845721,-4054.30444311,0.00029116,4]
[391066977,1760299845731,-4054.3,0.00029116,4]
[391066978,1760299845741,-9460.04370058,0.00029116,4]
[391066979,1760299845750,-9460.04370058,0.00029116,4]
[391066980,1760299845760,-9460.04370058,0.00029116,4]
[391066981,1760299845769,-9460.04370058,0.00029116,4]
[391066982,1760299845778,-9460.04370058,0.00029116,4]
[391066983,1760299845788,-9460.04370058,0.00029116,4]
[391066984,1760299845798,-9460.04370058,0.00029116,4]
[391066985,1760299845808,-9460.04370058,0.00029116,4]
[391066986,1760299845818,-9460.04370058,0.00029116,4]
[391066987,1760299845828,-9460.04370058,0.00029116,4]
[391066988,1760299845837,-9460.04370058,0.00029116,4]
[391066989,1760299845846,-9460.04370058,0.00029116,4]
[391066990,1760299845856,-9460.04370058,0.00029116,4]
[391066991,1760299845865,-9460.04370058,0.00029116,4]
[391066992,1760299845875,-9460.04370058,0.00029116,4]
[391066993,1760299845888,-9460.04370058,0.00029116,4]
[391066994,1760299845897,-9460.04370058,0.00029116,4]
[391066995,1760299845907,-9460.04370058,0.00029116,4]
[391066996,1760299845916,-9460.04370058,0.00029116,4]
[391066997,1760299845926,-9460.04,0.00029116,4]
[391066998,1760299845936,-1798.98,0.00029116,15]
[391066999,1760299845945,-1798.98,0.00029116,15]
[391067000,1760299845956,-1798.98,0.00029116,15]
[391067001,1760299845966,-1798.98,0.00029116,15]
[391067002,1760299845978,-222.94994008,0.00029127,2]
[391067003,1760299845988,-313.65515203,0.00029141,2]
[391067004,1760299845998,-323.47664087,0.00029149,2]
[391067005,1760299846008,-250.0,0.00029151,2]
[391067006,1760299846017,-250.0,0.00029151,2]
[391067007,1760299846028,-250.0,0.00029151,2]
[391067008,1760299846037,-250.0,0.00029151,2]
[391067009,1760299846047,-250.0,0.00029151,2]
[391067010,1760299846057,-300.0,0.00029151,2]
[391067011,1760299846068,-500.0,0.00029151,2]
[391067012,1760299846078,-222.94994008,0.00029155,2]
[391067013,1760299846088,-150.0,0.0002916,2]
[391067014,1760299846099,-500.0,0.00029173,5]
[391067015,1760299846108,-38114.2575688,0.00029173,3]
[391067016,1760299846118,-38114.2575688,0.00029174,3]
[391067017,1760299846128,-38114.2575688,0.00029174,3]
[391067018,1760299846137,-10733.0,0.00029178,2]
[391067019,1760299846146,-313.65515203,0.00029183,2]
[391067020,1760299846156,-222.94994008,0.00029183,2]
[391067021,1760299846166,-323.47664087,0.00029183,2]
[391067022,1760299846176,-151.0,0.00029184,30]
[391067023,1760299846185,-151.0,0.00029184,30]
[391067024,1760299846195,-151.0,0.00029184,30]
[391067025,1760299846205,-151.0,0.00029184,30]
[391067026,1760299846214,-151.0,0.00029184,30]
[391067027,1760299846223,-151.0,0.00029184,30]
[391067028,1760299846237,-151.0,0.00029184,30]
[391067029,1760299846247,-187.052561,0.00029184,30]
[391067030,1760299846256,-152.991766,0.00029184,30]
[391067031,1760299846266,-154.916597,0.00029184,30]
[391067032,1760299846275,-151.275989,0.00029184,30]
[391067033,1760299846285,-195.91611,0.00029184,30]
[391067034,1760299846294,-195.91611,0.00029184,30]
[391067035,1760299846303,-195.91611,0.00029184,30]
[391067036,1760299846313,-151.0,0.00029184,30]
[391067037,1760299846322,-195.91611,0.00029184,30]
[391067038,1760299846331,-151.0,0.00029184,30]
[391067039,1760299846340,-151.0,0.00029184,30]
[391067040,1760299846350,-151.0,0.00029184,30]
[391067041,1760299846360,-209.221634,0.00029184,30]
[391067042,1760299846370,-209.221634,0.00029184,30]
[391067043,1760299846379,-209.221634,0.00029184,30]
[391067044,1760299846389,-209.221634,0.00029184,30]
[391067045,1760299846398,-151.0,0.00029184,30]
[391067046,1760299846408,-255.853698,0.00029184,30]
[391067047,1760299846417,-184.82335354,0.00029184,2]
[391067048,1760299846427,-1053.99171725,0.00029184,2]
[391067049,1760299846437,-151.0,0.00029184,30]
[391067050,1760299846447,-152.290116,0.00029184,30]
[391067052,1760299846457,-151.0,0.00029184,30]
[391067053,1760299846467,-442.05112486,0.00029184,2]
[391067054,1760299846477,-220.59,0.00029188,7]
[391067056,1760299846486,-500.0,0.00029193,120]
[391067058,1760299846495,-151.0,0.000292,13]
[391067060,1760299846505,-151.0,0.00029204,30]
[391067062,1760299846514,-151.0,0.00029204,30]
[391067064,1760299846522,-151.0,0.00029204,30]
[391067066,1760299846531,-151.0,0.00029204,30]
[391067068,1760299846540,-151.0,0.00029204,30]
[391067070,1760299846549,-151.0,0.00029204,30]
[391067071,1760299846558,-195.91611,0.00029204,30]
[391067073,1760299846568,-195.91611,0.00029204,30]
[391067074,1760299846577,-195.91611,0.00029204,30]
[391067075,1760299846586,-151.0,0.00029204,30]
[391067076,1760299846595,-195.91611,0.00029204,30]
[391067077,1760299846604,-151.0,0.00029204,30]
[391067078,1760299846613,-151.0,0.00029204,30]
[391067079,1760299846622,-209.221634,0.00029204,30]
[391067080,1760299846632,-209.221634,0.00029204,30]
[391067081,1760299846640,-209.221634,0.00029204,30]
[391067082,1760299846650,-209.221634,0.00029204,30]
[391067083,1760299846659,-215.11201504,0.00029204,2]
[391067084,1760299846668,-300.0,0.00029206,2]
[391067085,1760299846677,-500.0,0.00029206,2]
[391067086,1760299846687,-155.0,0.00029213,2]
[391067087,1760299846696,-151.0,0.00029214,30]
[391067088,1760299846705,-151.0,0.00029214,30]
[391067089,1760299846713,-151.0,0.00029214,30]
[391067090,1760299846722,-158.924204,0.00029214,30]
[391067091,1760299846733,-151.0,0.00029214,30]
[391067092,1760299846742,-151.0,0.00029214,30]
[391067093,1760299846751,-151.0,0.00029214,30]
[391067094,1760299846760,-151.0,0.00029214,30]
[391067095,1760299846770,-151.0,0.00029214,30]
[391067096,1760299846779,-151.0,0.00029214,30]
[391067097,1760299846788,-167.278784,0.00029214,30]
[391067098,1760299846798,-151.0,0.00029214,30]
[391067099,1760299846807,-151.0,0.00029214,30]
[391067100,1760299846817,-151.0,0.00029214,30]
[391067101,1760299846826,-151.0,0.00029214,30]
[391067102,1760299846835,-151.832299,0.00029214,30]
[391067103,1760299846844,-560.103193,0.00029214,30]
[391067104,1760299846854,-151.0,0.00029214,30]
[391067105,1760299846863,-560.103193,0.00029214,30]
[391067106,1760299846872,-151.0,0.00029214,30]
[391067107,1760299846886,-560.103193,0.00029214,30]
[391067108,1760299846896,-216.972096,0.00029214,30]
[391067109,1760299846905,-560.103193,0.00029214,30]
[391067110,1760299846915,-331.356133,0.00029214,30]
[391067111,1760299846924,-331.356133,0.00029214,30]
[391067112,1760299846935,-331.356133,0.00029214,30]
[391067113,1760299846944,-331.356133,0.00029214,30]
[391067114,1760299846954,-151.0,0.00029214,30]
[391067115,1760299846965,-151.0,0.00029214,30]
[391067116,1760299846974,-165.77354,0.00029214,30]
[391067117,1760299846984,-151.0,0.00029214,30]
[391067118,1760299846994,-166.751629,0.00029214,30]
[391067119,1760299847004,-151.0,0.00029214,30]